[Event "Titled Tuesday Blitz June 28 Early 2022"]
[White "Adewumi, Tanitoluwa"]
[Black "Gallegos Diaz, Carlos Alberto"]
[WhiteFideId "30966396"]
[BlackFideId "3900886"]
[WhiteElo "2666"]
[BlackElo "2362"]
[Result "1-0"]
[Round "01"]
[TimeControl "180+1"]
[Date "2022.06.28"]
[WhiteClock "0:00:27"]
[BlackClock "0:00:15"]

1. e4 {[%clk 0:02:53]}  d6 {[%clk 0:02:57]} 2. Nf3 {[%clk 0:02:51]}  Nf6 {[%clk 0:02:57]} 3. Nc3 {[%clk 0:02:51]}  c6 {[%clk 0:02:57]} 4. d4 {[%clk 0:02:52]}  Qa5 {[%clk 0:02:57]} 5. Bd2 {[%clk 0:02:51]}  e5 {[%clk 0:02:57]} 6. Bd3 {[%clk 0:02:51]}  Qc7 {[%clk 0:02:56]} 7. h3 {[%clk 0:02:50]}  Be7 {[%clk 0:02:56]} 8. O-O {[%clk 0:02:51]}  O-O {[%clk 0:02:56]} 9. a4 {[%clk 0:02:49]}  Nbd7 {[%clk 0:02:56]} 10. Qe2 {[%clk 0:02:48]}  Re8 {[%clk 0:02:56]} 11. Rae1 {[%clk 0:02:47]}  h6 {[%clk 0:02:56]} 12. Kh2 {[%clk 0:02:42]}  Bf8 {[%clk 0:02:55]} 13. dxe5 {[%clk 0:02:41]}  dxe5 {[%clk 0:02:55]} 14. Nh4 {[%clk 0:02:40]}  a6 {[%clk 0:02:53]} 15. Nf5 {[%clk 0:02:36]}  b5 {[%clk 0:02:53]} 16. Qf3 {[%clk 0:02:24]}  Bb7 {[%clk 0:02:49]} 17. Qg3 {[%clk 0:02:11]}  Kh8 {[%clk 0:02:48]} 18. Qh4 {[%clk 0:01:46]}  Re6 {[%clk 0:02:16]} 19. Re3 {[%clk 0:01:36]}  Nc5 {[%clk 0:02:05]} 20. Rg3 {[%clk 0:01:32]}  Nh7 {[%clk 0:01:47]} 21. f4 {[%clk 0:00:57]}  Rg6 {[%clk 0:01:20]} 22. fxe5 {[%clk 0:00:46]}  Ne6 {[%clk 0:00:54]} 23. Nd6 {[%clk 0:00:26]}  Bxd6 {[%clk 0:00:39]} 24. exd6 {[%clk 0:00:27]}  Qxd6 {[%clk 0:00:40]} 25. e5 {[%clk 0:00:28]}  Qxe5 {[%clk 0:00:27]} 26. Bxg6 {[%clk 0:00:28]}  fxg6 {[%clk 0:00:27]} 27. Qe7 {[%clk 0:00:29]}  Rf8 {[%clk 0:00:14]} 28. Rxf8+ {[%clk 0:00:27]}  Nexf8 {[%clk 0:00:15]} 29. Qxe5 {[%clk 0:00:27]} 1-0


[Site "https://www.chess.com"]

[Event "Titled Tuesday Blitz June 28 Early 2022"]
[White "Agibileg, Uurtsaikh"]
[Black "Boraso, Alessio"]
[WhiteFideId "4901606"]
[BlackFideId "848077"]
[WhiteElo "2205"]
[BlackElo "2286"]
[Result "1-0"]
[Round "01"]
[TimeControl "180+1"]
[Date "2022.06.28"]
[WhiteClock "0:00:18"]
[BlackClock "0:00:01"]

1. d4 {[%clk 0:03:00]}  Nf6 {[%clk 0:02:59]} 2. c4 {[%clk 0:03:00]}  c5 {[%clk 0:02:59]} 3. d5 {[%clk 0:03:00]}  e6 {[%clk 0:03:00]} 4. Nc3 {[%clk 0:02:49]}  exd5 {[%clk 0:02:59]} 5. cxd5 {[%clk 0:02:46]}  d6 {[%clk 0:03:00]} 6. e4 {[%clk 0:02:46]}  g6 {[%clk 0:03:00]} 7. Bd3 {[%clk 0:02:45]}  Bg7 {[%clk 0:02:59]} 8. h3 {[%clk 0:02:46]}  O-O {[%clk 0:02:55]} 9. Nf3 {[%clk 0:02:46]}  a6 {[%clk 0:02:50]} 10. a4 {[%clk 0:02:45]}  Nh5 {[%clk 0:02:47]} 11. O-O {[%clk 0:02:44]}  Nd7 {[%clk 0:02:46]} 12. Bg5 {[%clk 0:02:45]}  Qc7 {[%clk 0:02:40]} 13. Re1 {[%clk 0:02:35]}  h6 {[%clk 0:02:33]} 14. Be3 {[%clk 0:02:21]}  Re8 {[%clk 0:02:27]} 15. Qd2 {[%clk 0:02:20]}  Kh7 {[%clk 0:02:26]} 16. Rad1 {[%clk 0:01:57]}  Rb8 {[%clk 0:02:24]} 17. Kh1 {[%clk 0:01:50]}  Ne5 {[%clk 0:01:59]} 18. Nxe5 {[%clk 0:01:49]}  Rxe5 {[%clk 0:01:56]} 19. g4 {[%clk 0:01:44]}  Nf6 {[%clk 0:01:54]} 20. f4 {[%clk 0:01:45]}  Re8 {[%clk 0:01:48]} 21. e5 {[%clk 0:01:45]}  dxe5 {[%clk 0:01:42]} 22. d6 {[%clk 0:01:45]}  Qc6+ {[%clk 0:01:33]} 23. Qg2 {[%clk 0:01:45]}  e4 {[%clk 0:01:17]} 24. Bc2 {[%clk 0:01:38]}  Bd7 {[%clk 0:01:12]} 25. g5 {[%clk 0:01:33]}  Nh5 {[%clk 0:01:10]} 26. Nd5 {[%clk 0:01:26]}  Bf5 {[%clk 0:01:04]} 27. Bb3 {[%clk 0:01:05]}  Rbd8 {[%clk 0:01:02]} 28. Ne7 {[%clk 0:01:01]}  Qd7 {[%clk 0:01:03]} 29. Bxf7 {[%clk 0:01:00]}  Rf8 {[%clk 0:00:53]} 30. Bc4 {[%clk 0:00:48]}  Bxh3 {[%clk 0:00:51]} 31. Qh2 {[%clk 0:00:40]}  Bg4 {[%clk 0:00:50]} 32. Be2 {[%clk 0:00:32]}  Bxe2 {[%clk 0:00:39]} 33. Rxe2 {[%clk 0:00:33]}  Qg4 {[%clk 0:00:33]} 34. Rg1 {[%clk 0:00:22]}  Qf3+ {[%clk 0:00:31]} 35. Reg2 {[%clk 0:00:23]}  Qxe3 {[%clk 0:00:24]} 36. gxh6 {[%clk 0:00:23]}  Bd4 {[%clk 0:00:17]} 37. Nxg6 {[%clk 0:00:22]}  Rg8 {[%clk 0:00:15]} 38. Qxh5 {[%clk 0:00:21]}  Rxd6 {[%clk 0:00:11]} 39. Qf5 {[%clk 0:00:18]}  Rdxg6 {[%clk 0:00:03]} 40. Rxg6 {[%clk 0:00:18]}  Kh8 {[%clk 0:00:01]} 41. Rxg8# {[%clk 0:00:18]} 1-0


[Site "https://www.chess.com"]

[Event "Titled Tuesday Blitz June 28 Early 2022"]
[White "Ardila, Oscar Humberto"]
[Black "Krishnan, Varun"]
[WhiteFideId "4404742"]
[BlackFideId "5054508"]
[WhiteElo "1956"]
[BlackElo "2571"]
[Result "0-1"]
[Round "01"]
[TimeControl "180+1"]
[Date "2022.06.28"]
[WhiteClock "0:00:09"]
[BlackClock "0:00:11"]

1. d4 {[%clk 0:02:32]}  Nf6 {[%clk 0:02:58]} 2. c4 {[%clk 0:02:32]}  e6 {[%clk 0:02:58]} 3. Nc3 {[%clk 0:02:32]}  d5 {[%clk 0:02:55]} 4. Nf3 {[%clk 0:02:30]}  Be7 {[%clk 0:02:56]} 5. Bf4 {[%clk 0:02:30]}  O-O {[%clk 0:02:56]} 6. e3 {[%clk 0:02:30]}  c5 {[%clk 0:02:50]} 7. cxd5 {[%clk 0:02:30]}  exd5 {[%clk 0:02:49]} 8. h3 {[%clk 0:02:29]}  Nc6 {[%clk 0:02:48]} 9. Bb5 {[%clk 0:02:23]}  c4 {[%clk 0:02:46]} 10. O-O {[%clk 0:02:23]}  Bb4 {[%clk 0:02:43]} 11. Bxc6 {[%clk 0:02:21]}  bxc6 {[%clk 0:02:42]} 12. Ne5 {[%clk 0:02:22]}  Bb7 {[%clk 0:02:42]} 13. Qf3 {[%clk 0:02:21]}  Bxc3 {[%clk 0:02:33]} 14. bxc3 {[%clk 0:02:21]}  Ne4 {[%clk 0:02:34]} 15. Rfc1 {[%clk 0:02:19]}  f6 {[%clk 0:02:29]} 16. Ng4 {[%clk 0:02:15]}  h5 {[%clk 0:02:20]} 17. Nh2 {[%clk 0:02:14]}  Qe8 {[%clk 0:02:10]} 18. Rab1 {[%clk 0:02:13]}  Nd2 {[%clk 0:02:07]} 19. Qd1 {[%clk 0:02:05]}  Nxb1 {[%clk 0:02:06]} 20. Rxb1 {[%clk 0:02:05]}  Bc8 {[%clk 0:02:04]} 21. Nf3 {[%clk 0:02:02]}  Bf5 {[%clk 0:02:02]} 22. Rb7 {[%clk 0:01:50]}  Rf7 {[%clk 0:02:00]} 23. Rb2 {[%clk 0:01:49]}  Be4 {[%clk 0:01:51]} 24. Nd2 {[%clk 0:01:48]}  Bg6 {[%clk 0:01:37]} 25. Qa4 {[%clk 0:01:46]}  Qc8 {[%clk 0:01:33]} 26. Qb4 {[%clk 0:01:39]}  Bd3 {[%clk 0:01:32]} 27. Nf3 {[%clk 0:01:35]}  Be4 {[%clk 0:01:29]} 28. Nd2 {[%clk 0:01:35]}  Bd3 {[%clk 0:01:26]} 29. Bh2 {[%clk 0:01:31]}  Qf5 {[%clk 0:01:21]} 30. Qa4 {[%clk 0:01:25]}  Qe6 {[%clk 0:01:17]} 31. Qa6 {[%clk 0:01:21]}  Qc8 {[%clk 0:01:06]} 32. Qa3 {[%clk 0:01:01]}  Rb7 {[%clk 0:01:05]} 33. Bd6 {[%clk 0:00:59]}  Rxb2 {[%clk 0:01:03]} 34. Qxb2 {[%clk 0:00:59]}  Qd8 {[%clk 0:01:02]} 35. Bf4 {[%clk 0:00:58]}  Qb6 {[%clk 0:01:00]} 36. Qa3 {[%clk 0:00:57]}  Re8 {[%clk 0:00:53]} 37. Bd6 {[%clk 0:00:55]}  Bg6 {[%clk 0:00:42]} 38. Bc5 {[%clk 0:00:53]}  Qb7 {[%clk 0:00:41]} 39. Bd6 {[%clk 0:00:41]}  Qd7 {[%clk 0:00:40]} 40. Nf1 {[%clk 0:00:34]}  Qf5 {[%clk 0:00:35]} 41. Ng3 {[%clk 0:00:31]}  Qb1+ {[%clk 0:00:32]} 42. Kh2 {[%clk 0:00:32]}  h4 {[%clk 0:00:32]} 43. Ne2 {[%clk 0:00:32]}  Qc2 {[%clk 0:00:22]} 44. Nf4 {[%clk 0:00:31]}  Be4 {[%clk 0:00:22]} 45. Qxa7 {[%clk 0:00:27]}  Bg6 {[%clk 0:00:19]} 46. Qd7 {[%clk 0:00:26]}  Bf7 {[%clk 0:00:18]} 47. Qxc6 {[%clk 0:00:24]}  Qxa2 {[%clk 0:00:18]} 48. Nxd5 {[%clk 0:00:15]}  Qxf2 {[%clk 0:00:18]} 49. Ne7+ {[%clk 0:00:14]}  Kh8 {[%clk 0:00:16]} 50. Qd7 {[%clk 0:00:14]}  Qxe3 {[%clk 0:00:13]} 51. Nf5 {[%clk 0:00:13]}  Qe6 {[%clk 0:00:11]} 52. Qxf7 {[%clk 0:00:09]}  Qxf7 {[%clk 0:00:11]} 0-1


[Site "https://www.chess.com"]

[Event "Titled Tuesday Blitz June 28 Early 2022"]
[White "Artemenko, Oleg"]
[Black "Zaksaite, Salomeja"]
[WhiteFideId "14201798"]
[BlackFideId "12801496"]
[WhiteElo "2287"]
[BlackElo "1953"]
[Result "1-0"]
[Round "01"]
[TimeControl "180+1"]
[Date "2022.06.28"]
[WhiteClock "0:01:20"]
[BlackClock "0:00:01"]

1. e4 {[%clk 0:02:58]}  c5 {[%clk 0:02:59]} 2. Nf3 {[%clk 0:02:58]}  e6 {[%clk 0:02:59]} 3. d4 {[%clk 0:02:58]}  cxd4 {[%clk 0:02:58]} 4. Nxd4 {[%clk 0:02:59]}  Nf6 {[%clk 0:02:58]} 5. Nc3 {[%clk 0:03:00]}  Nc6 {[%clk 0:02:58]} 6. Nxc6 {[%clk 0:03:00]}  bxc6 {[%clk 0:02:58]} 7. e5 {[%clk 0:03:00]}  Nd5 {[%clk 0:02:58]} 8. Ne4 {[%clk 0:03:01]}  Qc7 {[%clk 0:02:58]} 9. f4 {[%clk 0:03:01]}  Qb6 {[%clk 0:02:57]} 10. c4 {[%clk 0:03:00]}  Bb4+ {[%clk 0:02:57]} 11. Ke2 {[%clk 0:03:01]}  f5 {[%clk 0:02:57]} 12. exf6 {[%clk 0:02:59]}  Nxf6 {[%clk 0:02:56]} 13. Be3 {[%clk 0:03:00]}  c5 {[%clk 0:02:49]} 14. Nxf6+ {[%clk 0:02:57]}  gxf6 {[%clk 0:02:49]} 15. a3 {[%clk 0:02:57]}  Rb8 {[%clk 0:02:15]} 16. Kf2 {[%clk 0:02:48]}  Ba5 {[%clk 0:00:47]} 17. b4 {[%clk 0:02:47]}  Bxb4 {[%clk 0:00:45]} 18. axb4 {[%clk 0:02:43]}  Qxb4 {[%clk 0:00:45]} 19. Qh5+ {[%clk 0:02:43]}  Kd8 {[%clk 0:00:45]} 20. Be2 {[%clk 0:02:43]}  Bb7 {[%clk 0:00:43]} 21. Bxc5 {[%clk 0:02:36]}  Qd2 {[%clk 0:00:36]} 22. Qh6 {[%clk 0:01:49]}  Rg8 {[%clk 0:00:23]} 23. Qxf6+ {[%clk 0:01:47]}  Kc8 {[%clk 0:00:17]} 24. Rhg1 {[%clk 0:01:40]}  Bxg2 {[%clk 0:00:14]} 25. Be3 {[%clk 0:01:37]}  Qc2 {[%clk 0:00:07]} 26. Qf7 {[%clk 0:01:27]}  Rg6 {[%clk 0:00:01]} 27. Qe8+ {[%clk 0:01:21]}  Kc7 {[%clk 0:00:01]} 28. Rxa7+ {[%clk 0:01:20]} 1-0


[Site "https://www.chess.com"]

[Event "Titled Tuesday Blitz June 28 Early 2022"]
[White "Bachmann, Axel"]
[Black "Large, Peter G"]
[WhiteFideId "3700488"]
[BlackFideId "400866"]
[WhiteElo "2587"]
[BlackElo "2064"]
[Result "1-0"]
[Round "01"]
[TimeControl "180+1"]
[Date "2022.06.28"]
[WhiteClock "0:00:30"]
[BlackClock "0:00:07"]

1. d4 {[%clk 0:02:59]}  e6 {[%clk 0:03:00]} 2. c4 {[%clk 0:02:59]}  Nf6 {[%clk 0:03:00]} 3. Nf3 {[%clk 0:02:59]}  b6 {[%clk 0:02:59]} 4. a3 {[%clk 0:02:56]}  Bb7 {[%clk 0:02:59]} 5. Nc3 {[%clk 0:02:56]}  Ne4 {[%clk 0:02:59]} 6. Nxe4 {[%clk 0:02:52]}  Bxe4 {[%clk 0:02:59]} 7. Bf4 {[%clk 0:02:53]}  Be7 {[%clk 0:02:56]} 8. e3 {[%clk 0:02:53]}  O-O {[%clk 0:02:54]} 9. Be2 {[%clk 0:02:44]}  d5 {[%clk 0:02:52]} 10. O-O {[%clk 0:02:36]}  Nd7 {[%clk 0:02:51]} 11. Nd2 {[%clk 0:02:35]}  Bg6 {[%clk 0:02:44]} 12. cxd5 {[%clk 0:02:10]}  exd5 {[%clk 0:02:43]} 13. Bb5 {[%clk 0:02:11]}  Nf6 {[%clk 0:02:13]} 14. Rc1 {[%clk 0:02:05]}  Bd6 {[%clk 0:02:06]} 15. Bc6 {[%clk 0:01:56]}  Rc8 {[%clk 0:02:05]} 16. Be5 {[%clk 0:01:39]}  Qe7 {[%clk 0:01:47]} 17. Nf3 {[%clk 0:01:32]}  Rfd8 {[%clk 0:01:35]} 18. Qb3 {[%clk 0:01:24]}  Be4 {[%clk 0:01:28]} 19. Bxd6 {[%clk 0:01:22]}  Rxd6 {[%clk 0:01:18]} 20. Ne5 {[%clk 0:01:22]}  h5 {[%clk 0:00:59]} 21. f3 {[%clk 0:01:22]}  Bf5 {[%clk 0:00:56]} 22. Rc3 {[%clk 0:01:21]}  Nd7 {[%clk 0:00:37]} 23. Bb7 {[%clk 0:01:12]}  Nxe5 {[%clk 0:00:18]} 24. dxe5 {[%clk 0:01:09]}  Qxe5 {[%clk 0:00:14]} 25. Bxc8 {[%clk 0:01:10]}  Bxc8 {[%clk 0:00:13]} 26. Rxc7 {[%clk 0:01:10]}  Ba6 {[%clk 0:00:14]} 27. Rd1 {[%clk 0:00:51]}  Bc4 {[%clk 0:00:13]} 28. Qc3 {[%clk 0:00:49]}  Qg5 {[%clk 0:00:11]} 29. Rxc4 {[%clk 0:00:47]}  Rg6 {[%clk 0:00:11]} 30. Rc8+ {[%clk 0:00:47]}  Kh7 {[%clk 0:00:11]} 31. Rd2 {[%clk 0:00:44]}  Qf5 {[%clk 0:00:11]} 32. Qc2 {[%clk 0:00:30]}  Qe6 {[%clk 0:00:09]} 33. Rc3 {[%clk 0:00:30]}  d4 {[%clk 0:00:07]} 34. Rxd4 {[%clk 0:00:30]} 1-0


[Site "https://www.chess.com"]

[Event "Titled Tuesday Blitz June 28 Early 2022"]
[White "Bagrationi, Alexander"]
[Black "Antonio, Jorge Carlos"]
[WhiteFideId "14104954"]
[BlackFideId "113190"]
[WhiteElo "2398"]
[BlackElo "2247"]
[Result "1-0"]
[Round "01"]
[TimeControl "180+1"]
[Date "2022.06.28"]
[WhiteClock "0:00:07"]
[BlackClock "0:00:09"]

1. d4 {[%clk 0:02:56]}  d5 {[%clk 0:02:58]} 2. c4 {[%clk 0:02:56]}  c6 {[%clk 0:02:58]} 3. Nf3 {[%clk 0:02:55]}  dxc4 {[%clk 0:02:58]} 4. a4 {[%clk 0:02:54]}  Nf6 {[%clk 0:02:56]} 5. Nc3 {[%clk 0:02:51]}  Bf5 {[%clk 0:02:49]} 6. Nh4 {[%clk 0:02:51]}  Bd7 {[%clk 0:02:44]} 7. e4 {[%clk 0:02:50]}  b5 {[%clk 0:02:44]} 8. e5 {[%clk 0:02:41]}  Nd5 {[%clk 0:02:41]} 9. g3 {[%clk 0:02:38]}  e6 {[%clk 0:02:40]} 10. Bg2 {[%clk 0:02:38]}  Na6 {[%clk 0:02:35]} 11. axb5 {[%clk 0:02:33]}  Nab4 {[%clk 0:02:32]} 12. bxc6 {[%clk 0:02:33]}  Bxc6 {[%clk 0:02:29]} 13. O-O {[%clk 0:02:31]}  Be7 {[%clk 0:02:26]} 14. Qg4 {[%clk 0:02:28]}  O-O {[%clk 0:02:12]} 15. Bh6 {[%clk 0:02:26]}  g6 {[%clk 0:02:10]} 16. Bxf8 {[%clk 0:02:25]}  Bxf8 {[%clk 0:02:09]} 17. Rad1 {[%clk 0:02:20]}  Rb8 {[%clk 0:02:05]} 18. Ne4 {[%clk 0:02:20]}  Nd3 {[%clk 0:01:59]} 19. Nf3 {[%clk 0:01:57]}  Rxb2 {[%clk 0:01:55]} 20. Nfd2 {[%clk 0:01:45]}  c3 {[%clk 0:01:46]} 21. Nc4 {[%clk 0:01:43]}  Rb4 {[%clk 0:01:41]} 22. Rxd3 {[%clk 0:01:00]}  Rxc4 {[%clk 0:01:41]} 23. Rc1 {[%clk 0:00:59]}  h5 {[%clk 0:01:37]} 24. Qd1 {[%clk 0:00:56]}  Ba4 {[%clk 0:01:32]} 25. Qe2 {[%clk 0:00:48]}  c2 {[%clk 0:01:25]} 26. Rd2 {[%clk 0:00:40]}  Qc7 {[%clk 0:01:13]} 27. Nc5 {[%clk 0:00:31]}  Bh6 {[%clk 0:01:09]} 28. Qxc4 {[%clk 0:00:29]}  Bxd2 {[%clk 0:01:05]} 29. Qxa4 {[%clk 0:00:23]}  Bxc1 {[%clk 0:01:01]} 30. Qxc2 {[%clk 0:00:23]}  Ba3 {[%clk 0:00:57]} 31. Bxd5 {[%clk 0:00:19]}  exd5 {[%clk 0:00:54]} 32. e6 {[%clk 0:00:18]}  a5 {[%clk 0:00:47]} 33. exf7+ {[%clk 0:00:18]}  Qxf7 {[%clk 0:00:43]} 34. Nd3 {[%clk 0:00:15]}  Qf5 {[%clk 0:00:40]} 35. Qb3 {[%clk 0:00:15]}  Bd6 {[%clk 0:00:36]} 36. Nc5 {[%clk 0:00:09]}  h4 {[%clk 0:00:34]} 37. Nb7 {[%clk 0:00:02]}  hxg3 {[%clk 0:00:28]} 38. hxg3 {[%clk 0:00:02]}  Bb4 {[%clk 0:00:25]} 39. Nxa5 {[%clk 0:00:02]}  Bxa5 {[%clk 0:00:21]} 40. Qb8+ {[%clk 0:00:02]}  Kh7 {[%clk 0:00:20]} 41. Qa7+ {[%clk 0:00:03]}  Kh6 {[%clk 0:00:19]} 42. Qxa5 {[%clk 0:00:03]}  Qb1+ {[%clk 0:00:18]} 43. Kh2 {[%clk 0:00:04]}  Qe4 {[%clk 0:00:17]} 44. Qd2+ {[%clk 0:00:04]}  Kg7 {[%clk 0:00:15]} 45. Qe3 {[%clk 0:00:04]}  Qf5 {[%clk 0:00:12]} 46. Qe5+ {[%clk 0:00:04]}  Qxe5 {[%clk 0:00:11]} 47. dxe5 {[%clk 0:00:05]}  d4 {[%clk 0:00:09]} 48. Kg2 {[%clk 0:00:05]}  g5 {[%clk 0:00:09]} 49. f4 {[%clk 0:00:06]}  g4 {[%clk 0:00:08]} 50. Kf2 {[%clk 0:00:06]}  Kg6 {[%clk 0:00:09]} 51. Ke2 {[%clk 0:00:06]}  Kf5 {[%clk 0:00:09]} 52. Kd3 {[%clk 0:00:07]} 1-0


[Site "https://www.chess.com"]

[Event "Titled Tuesday Blitz June 28 Early 2022"]
[White "Bekturov, Tamerlan"]
[Black "Pourkashiyan, Atousa"]
[WhiteFideId "13710184"]
[BlackFideId "12502014"]
[WhiteElo "2151"]
[BlackElo "2247"]
[Result "1-0"]
[Round "01"]
[TimeControl "180+1"]
[Date "2022.06.28"]
[WhiteClock "0:00:20"]
[BlackClock "0:00:02"]

1. d4 {[%clk 0:02:52]}  Nf6 {[%clk 0:02:59]} 2. c4 {[%clk 0:02:52]}  e6 {[%clk 0:02:59]} 3. g3 {[%clk 0:02:52]}  Bb4+ {[%clk 0:02:58]} 4. Bd2 {[%clk 0:02:51]}  Bxd2+ {[%clk 0:02:58]} 5. Qxd2 {[%clk 0:02:52]}  d5 {[%clk 0:02:57]} 6. Bg2 {[%clk 0:02:52]}  O-O {[%clk 0:02:58]} 7. Nf3 {[%clk 0:02:52]}  b6 {[%clk 0:02:41]} 8. cxd5 {[%clk 0:02:50]}  exd5 {[%clk 0:02:39]} 9. O-O {[%clk 0:02:50]}  Be6 {[%clk 0:02:35]} 10. Nc3 {[%clk 0:02:47]}  c6 {[%clk 0:02:24]} 11. Ne5 {[%clk 0:02:39]}  Nfd7 {[%clk 0:02:21]} 12. Nd3 {[%clk 0:02:35]}  Re8 {[%clk 0:02:11]} 13. Rac1 {[%clk 0:02:34]}  Na6 {[%clk 0:02:10]} 14. Nf4 {[%clk 0:02:24]}  Nc7 {[%clk 0:01:53]} 15. e4 {[%clk 0:02:13]}  dxe4 {[%clk 0:01:51]} 16. Nxe4 {[%clk 0:02:13]}  Nd5 {[%clk 0:01:47]} 17. Rxc6 {[%clk 0:02:04]}  Nxf4 {[%clk 0:01:46]} 18. Qxf4 {[%clk 0:02:04]}  Bd5 {[%clk 0:01:46]} 19. Rd6 {[%clk 0:02:02]}  Bxe4 {[%clk 0:01:42]} 20. Bxe4 {[%clk 0:02:03]}  Qe7 {[%clk 0:01:38]} 21. Bxa8 {[%clk 0:02:00]}  Rxa8 {[%clk 0:01:35]} 22. Rc6 {[%clk 0:01:59]}  Nf6 {[%clk 0:01:33]} 23. Rfc1 {[%clk 0:01:57]}  Qd7 {[%clk 0:01:17]} 24. Rc7 {[%clk 0:01:54]}  Qh3 {[%clk 0:01:14]} 25. Qh4 {[%clk 0:01:16]}  Qf5 {[%clk 0:01:13]} 26. Qf4 {[%clk 0:01:14]}  Qh3 {[%clk 0:01:13]} 27. Re1 {[%clk 0:01:09]}  h6 {[%clk 0:01:12]} 28. Ree7 {[%clk 0:01:04]}  Rf8 {[%clk 0:01:10]} 29. Qf3 {[%clk 0:01:01]}  Ng4 {[%clk 0:01:04]} 30. Qg2 {[%clk 0:00:55]}  Qh5 {[%clk 0:01:04]} 31. Rxa7 {[%clk 0:00:50]}  Qb5 {[%clk 0:00:51]} 32. f3 {[%clk 0:00:46]}  Nf6 {[%clk 0:00:49]} 33. Qe2 {[%clk 0:00:46]}  Qc6 {[%clk 0:00:44]} 34. Kg2 {[%clk 0:00:40]}  h5 {[%clk 0:00:43]} 35. Re5 {[%clk 0:00:31]}  h4 {[%clk 0:00:41]} 36. Rae7 {[%clk 0:00:30]}  Rd8 {[%clk 0:00:30]} 37. Qd3 {[%clk 0:00:27]}  Ng4 {[%clk 0:00:25]} 38. Rh5 {[%clk 0:00:24]}  h3+ {[%clk 0:00:19]} 39. Rxh3 {[%clk 0:00:23]}  g6 {[%clk 0:00:18]} 40. Rh4 {[%clk 0:00:22]}  Nf6 {[%clk 0:00:17]} 41. Re2 {[%clk 0:00:22]}  Nd5 {[%clk 0:00:17]} 42. Rhe4 {[%clk 0:00:21]}  Nb4 {[%clk 0:00:16]} 43. Qb3 {[%clk 0:00:21]}  Nd5 {[%clk 0:00:14]} 44. Rc2 {[%clk 0:00:20]}  Qd6 {[%clk 0:00:13]} 45. Rce2 {[%clk 0:00:21]}  Qc6 {[%clk 0:00:12]} 46. a4 {[%clk 0:00:21]}  Ra8 {[%clk 0:00:11]} 47. Qb5 {[%clk 0:00:21]}  Qxb5 {[%clk 0:00:05]} 48. axb5 {[%clk 0:00:22]}  Ra5 {[%clk 0:00:05]} 49. Re5 {[%clk 0:00:20]}  Rxb5 {[%clk 0:00:04]} 50. Kf2 {[%clk 0:00:21]}  Ra5 {[%clk 0:00:03]} 51. Rc2 {[%clk 0:00:20]}  Kg7 {[%clk 0:00:02]} 52. g4 {[%clk 0:00:20]} 1-0


[Site "https://www.chess.com"]

[Event "Titled Tuesday Blitz June 28 Early 2022"]
[White "Bellissimo, Joseph F."]
[Black "Donatti, Alvaro"]
[WhiteFideId "2609843"]
[BlackFideId "3000303"]
[WhiteElo "2061"]
[BlackElo "2138"]
[Result "1-0"]
[Round "01"]
[TimeControl "180+1"]
[Date "2022.06.28"]
[WhiteClock "0:01:53"]
[BlackClock "0:01:22"]

1. e4 {[%clk 0:02:58]}  c5 {[%clk 0:02:49]} 2. Nf3 {[%clk 0:02:58]}  e6 {[%clk 0:02:49]} 3. c3 {[%clk 0:02:58]}  Nc6 {[%clk 0:02:44]} 4. d4 {[%clk 0:02:58]}  cxd4 {[%clk 0:02:44]} 5. cxd4 {[%clk 0:02:58]}  d5 {[%clk 0:02:44]} 6. e5 {[%clk 0:02:59]}  Qb6 {[%clk 0:02:42]} 7. Nc3 {[%clk 0:03:00]}  Bd7 {[%clk 0:02:41]} 8. Be2 {[%clk 0:02:55]}  Nge7 {[%clk 0:02:41]} 9. Na4 {[%clk 0:02:52]}  Qc7 {[%clk 0:02:39]} 10. Nc5 {[%clk 0:02:51]}  Nf5 {[%clk 0:02:30]} 11. Be3 {[%clk 0:02:52]}  Bxc5 {[%clk 0:02:27]} 12. dxc5 {[%clk 0:02:52]}  O-O {[%clk 0:02:25]} 13. Bf4 {[%clk 0:02:47]}  Nce7 {[%clk 0:02:22]} 14. Rc1 {[%clk 0:02:43]}  Ng6 {[%clk 0:02:21]} 15. Qd2 {[%clk 0:02:43]}  Nxf4 {[%clk 0:02:17]} 16. Qxf4 {[%clk 0:02:43]}  Rac8 {[%clk 0:02:13]} 17. O-O {[%clk 0:02:43]}  Qa5 {[%clk 0:02:12]} 18. a3 {[%clk 0:02:41]}  Bb5 {[%clk 0:02:02]} 19. b4 {[%clk 0:02:37]}  Qa6 {[%clk 0:01:59]} 20. Bxb5 {[%clk 0:02:38]}  Qxb5 {[%clk 0:01:59]} 21. Nd4 {[%clk 0:02:27]}  Nxd4 {[%clk 0:01:57]} 22. Qxd4 {[%clk 0:02:25]}  a5 {[%clk 0:01:57]} 23. f4 {[%clk 0:02:23]}  axb4 {[%clk 0:01:56]} 24. axb4 {[%clk 0:02:22]}  Ra8 {[%clk 0:01:56]} 25. Rf3 {[%clk 0:02:21]}  Ra2 {[%clk 0:01:54]} 26. f5 {[%clk 0:02:19]}  exf5 {[%clk 0:01:45]} 27. Rxf5 {[%clk 0:02:14]}  Qe2 {[%clk 0:01:43]} 28. Rf2 {[%clk 0:02:14]}  Qa6 {[%clk 0:01:39]} 29. Rxa2 {[%clk 0:02:11]}  Qxa2 {[%clk 0:01:38]} 30. b5 {[%clk 0:02:01]}  h6 {[%clk 0:01:35]} 31. c6 {[%clk 0:02:00]}  bxc6 {[%clk 0:01:35]} 32. bxc6 {[%clk 0:01:58]}  Rc8 {[%clk 0:01:34]} 33. h3 {[%clk 0:01:56]}  Qa6 {[%clk 0:01:31]} 34. Qxd5 {[%clk 0:01:56]}  Qe2 {[%clk 0:01:27]} 35. Kh1 {[%clk 0:01:55]}  Re8 {[%clk 0:01:24]} 36. c7 {[%clk 0:01:54]}  Qb2 {[%clk 0:01:22]} 37. c8=Q {[%clk 0:01:53]} 1-0


[Site "https://www.chess.com"]